fUSD/lending_fUSD_20250124
["ID","MTS","AMOUNT","RATE_DAILY","PERIOD"]
[350248364,1737735083666,-5610.4816021,0.0002,2]
[350248365,1737735083675,-28535.22406833,0.0002,14]
[350248366,1737735083685,-2999.99,0.0002,2]
[350248367,1737735083695,-3000.0,0.0002,2]
[350248368,1737735083706,-3005.29,0.0002,2]
[350248369,1737735083716,-2000.0,0.0002,2]
[350248370,1737735083725,-5988.76,0.0002,2]
[350248371,1737735083736,-11909.01,0.0002,2]
[350248372,1737735083746,-655.93,0.0002,2]
[350248373,1737735083758,-6483.71,0.0002,2]
[350248374,1737735083767,-12499.99,0.0002,2]
[350248375,1737735083778,-12500.0,0.0002,2]
[350248376,1737735083788,-10000.0,0.0002,2]
[350248377,1737735083799,-701.73,0.0002,2]
[350248378,1737735083809,-2000.0,0.0002,2]
[350248379,1737735083820,-942.82,0.0002,2]
[350248380,1737735083830,-10000.0,0.0002,2]
[350248381,1737735083840,-60016.76895196,0.0002,3]
[350248382,1737735083851,-481.84,0.0002,2]
[350248383,1737735083861,-2000.0,0.0002,2]
[350248384,1737735083873,-418.29,0.0002,2]
[350248385,1737735083886,-12499.99,0.0002,2]
[350248386,1737735083897,-9999.99,0.0002,2]
[350248387,1737735083907,-10000.0,0.0002,2]
[350248388,1737735083918,-12500.0,0.0002,2]
[350248389,1737735083928,-276.31,0.0002,2]
[350248390,1737735083939,-150.0,0.0002,7]
[350248391,1737735083949,-2951.48,0.0002,2]
[350248392,1737735083962,-9999.98,0.0002,2]
[350248393,1737735083974,-10000.0,0.0002,2]
[350248394,1737735083984,-159.0,0.0002,2]
[350248395,1737735083996,-12499.99,0.0002,2]
[350248396,1737735084009,-1302.03,0.0002,2]
[350248397,1737735084019,-1000.0,0.0002,2]
[350248398,1737735084030,-2000.0,0.0002001,2]
[350248399,1737735084041,-14323.81,0.00020011,2]
[350248400,1737735084051,-150.0,0.00020016,4]
[350248401,1737735084063,-3954.241409,0.0002002,2]
[350248402,1737735084073,-623.66119626,0.00020038,2]
[350248403,1737735084083,-12500.0,0.0002004,2]
[350248404,1737735084093,-4899.84,0.0002004,2]
[350248405,1737735084103,-150.0,0.00020043,2]
[350248406,1737735084113,-150.0,0.00020044,2]
[350248407,1737735084124,-21080.07698603,0.00020054,2]
[350248408,1737735084135,-234.78905027,0.00020055,2]
[350248409,1737735084145,-150.0,0.00020059,4]
[350248410,1737735084156,-509.51,0.00020062,2]
[350248411,1737735084167,-577.72,0.00020062,2]
[350248412,1737735084178,-580.64,0.00020062,2]
[350248413,1737735084188,-679.78,0.00020062,2]
[350248414,1737735084199,-1705.53,0.00020062,2]
[350248415,1737735084211,-2554.5,0.00020062,2]
[350248416,1737735084223,-676.513947,0.00020062,2]
[350248417,1737735084233,-500.0,0.00020062,2]
[350248418,1737735084244,-956.9,0.00020062,2]
[350248419,1737735084255,-1945.88,0.00020062,2]
[350248420,1737735084265,-2012.13,0.00020062,2]
[350248421,1737735084275,-622.12,0.00020062,2]
[350248422,1737735084286,-846.729176,0.00020062,2]
[350248423,1737735084297,-1583.64,0.00020062,2]
[350248424,1737735084307,-564.16,0.00020062,2]
[350248425,1737735084318,-1121.35,0.00020062,2]
[350248426,1737735084328,-871.63,0.00020062,2]
[350248427,1737735084339,-1370.61,0.00020062,2]
[350248428,1737735084349,-705.29,0.00020062,2]
[350248429,1737735084360,-1962.44,0.00020062,2]
[350248430,1737735084371,-718.17,0.00020062,2]
[350248431,1737735084381,-619.05,0.00020062,2]
[350248432,1737735084391,-865.04,0.00020062,2]
[350248433,1737735084402,-2217.77,0.00020062,2]
[350248434,1737735084413,-722.1,0.00020062,2]
[350248435,1737735084423,-562.1,0.00020062,2]
[350248436,1737735084433,-2901.51,0.00020062,2]
[350248437,1737735084443,-503.38,0.00020062,2]
[350248438,1737735084452,-1511.51,0.00020062,2]
[350248439,1737735084462,-500.0,0.00020062,2]
[350248440,1737735084473,-1656.27,0.00020062,2]
[350248441,1737735084483,-831.3,0.00020062,2]
[350248442,1737735084494,-1027.33,0.00020062,2]
[350248443,1737735084507,-1185.98,0.00020062,2]
[350248444,1737735084517,-985.79,0.00020062,2]
[350248445,1737735084528,-2108.39,0.00020062,2]
[350248446,1737735084539,-1080.47,0.00020062,2]
[350248447,1737735084549,-838.77,0.00020062,2]
[350248448,1737735084559,-538.96,0.00020062,2]
[350248449,1737735084568,-500.0,0.00020062,2]
[350248450,1737735084578,-578.58,0.00020062,2]
[350248451,1737735084587,-2039.23,0.00020062,2]
[350248452,1737735084597,-1068.15,0.00020062,2]
[350248453,1737735084607,-1155.96,0.00020062,2]
[350248454,1737735084617,-2273.11,0.00020062,2]
[350248455,1737735084627,-1338.57,0.00020062,2]
[350248456,1737735084638,-3483.22,0.00020062,2]
[350248457,1737735084648,-500.0,0.00020062,2]
[350248458,1737735084658,-872.95,0.00020062,2]
[350248459,1737735084668,-1147.06,0.00020062,2]
[350248460,1737735084678,-500.0,0.00020062,2]
[350248461,1737735084689,-1277.07,0.00020062,2]
[350248462,1737735084699,-2989.39,0.00020062,2]
[350248463,1737735084710,-644.25,0.00020062,2]
[350248464,1737735084719,-871.11,0.00020062,2]
[350248465,1737735084728,-500.0,0.00020063,2]
[350248466,1737735084740,-500.0,0.00020063,2]
[350248467,1737735084750,-500.0,0.00020063,2]
[350248468,1737735084762,-500.0,0.00020063,2]
[350248469,1737735084771,-500.0,0.00020063,2]
[350248470,1737735084783,-677.93,0.00020063,2]
[350248471,1737735084793,-500.0,0.00020063,2]
[350248472,1737735084803,-660.08,0.00020063,2]
[350248473,1737735084813,-589.35,0.00020063,2]
[350248474,1737735084823,-500.0,0.00020063,2]
[350248475,1737735084834,-500.0,0.00020063,2]
[350248476,1737735084845,-770.43,0.00020063,2]
[350248477,1737735084855,-500.0,0.00020063,2]
[350248478,1737735084865,-500.0,0.00020063,2]
[350248479,1737735084878,-500.0,0.00020063,2]
[350248480,1737735084888,-513.79,0.00020063,2]
[350248481,1737735084899,-500.0,0.00020063,2]
[350248482,1737735084909,-580.89,0.00020063,2]
[350248483,1737735084919,-614.29,0.00020063,2]
[350248484,1737735084929,-500.0,0.00020063,2]
[350248485,1737735084939,-500.0,0.00020063,2]
[350248486,1737735084949,-500.0,0.00020063,2]
[350248487,1737735084962,-566.81,0.00020063,2]
[350248488,1737735084973,-767.86,0.00020063,2]
[350248489,1737735084983,-654.02,0.00020063,2]
[350248490,1737735084994,-500.0,0.00020063,2]
[350248491,1737735085004,-500.0,0.00020063,2]
[350248492,1737735085014,-500.0,0.00020063,2]
[350248493,1737735085024,-500.0,0.00020063,2]
[350248494,1737735085035,-500.0,0.00020063,2]
[350248495,1737735085045,-500.0,0.00020063,2]
[350248496,1737735085056,-500.0,0.00020063,2]
[350248497,1737735085067,-500.0,0.00020063,2]
[350248498,1737735085077,-509.94,0.00020063,2]
[350248499,1737735085088,-500.0,0.00020063,2]
[350248500,1737735085098,-798.82,0.00020063,2]
[350248501,1737735085109,-652.05,0.00020063,2]
[350248502,1737735085119,-846.33,0.00020063,2]
[350248503,1737735085129,-770.06,0.00020063,2]
[350248504,1737735085139,-937.47,0.00020063,2]
[350248505,1737735085149,-672.05,0.00020063,2]
[350248506,1737735085160,-500.0,0.00020063,2]
[350248507,1737735085170,-692.99,0.00020063,2]
[350248508,1737735085180,-500.0,0.00020063,2]
[350248509,1737735085189,-500.0,0.00020063,2]
[350248510,1737735085200,-500.0,0.00020063,2]
[350248511,1737735085210,-500.0,0.00020063,2]
[350248512,1737735085220,-1011.61,0.00020063,2]
[350248513,1737735085231,-532.40805573,0.00020063,2]
[350248514,1737735085240,-500.0,0.00020063,2]
[350248515,1737735085250,-500.0,0.00020063,2]
[350248516,1737735085261,-954.97,0.00020063,2]
[350248517,1737735085271,-594.05,0.00020063,2]
[350248518,1737735085281,-614.05,0.00020063,2]
[350248519,1737735085293,-652.47,0.00020063,2]
[350248520,1737735085303,-849.3,0.00020063,2]
[350248521,1737735085313,-708.17,0.00020063,2]
[350248522,1737735085323,-511.38,0.00020063,2]
[350248523,1737735085334,-833.01,0.00020063,2]
[350248524,1737735085346,-681.69,0.00020063,2]
[350248525,1737735085358,-560.31,0.00020063,2]
[350248526,1737735085368,-500.0,0.00020063,2]
[350248527,1737735085378,-805.26,0.00020063,2]
[350248528,1737735085389,-697.85,0.00020063,2]
[350248529,1737735085400,-500.0,0.00020063,2]
[350248530,1737735085575,-500.0,0.00020063,2]
[350248531,1737735085586,-580.02,0.00020063,2]
[350248532,1737735085596,-500.0,0.00020063,2]
[350248533,1737735085607,-669.97,0.00020063,2]
[350248534,1737735085617,-500.0,0.00020063,7]
[350248535,1737735085627,-500.0,0.00020063,2]
[350248536,1737735085638,-500.0,0.00020063,2]
[350248537,1737735085649,-556.37,0.00020063,2]
[350248538,1737735085659,-500.0,0.00020063,2]
[350248539,1737735085670,-500.0,0.00020063,2]
[350248540,1737735085682,-1151.25,0.00020063,2]
[350248541,1737735085692,-582.4,0.00020063,2]
[350248542,1737735085702,-500.0,0.00020063,2]
[350248543,1737735085713,-1417.9,0.00020063,2]
[350248544,1737735085724,-656.44,0.00020063,2]
[350248545,1737735085734,-582.99,0.00020063,2]
[350248546,1737735085744,-150.0,0.00020063,2]
[350248547,1737735085757,-544.3,0.00020063,2]
[350248548,1737735085767,-500.0,0.00020063,2]
[350248549,1737735085777,-1083.19,0.00020063,2]
[350248550,1737735085788,-634.65,0.00020063,2]
[350248551,1737735085797,-1858.23,0.00020063,2]
[350248552,1737735085807,-516.81,0.00020063,2]
[350248553,1737735085818,-1003.94,0.00020063,2]
[350248554,1737735085828,-500.0,0.00020063,2]
[350248555,1737735085838,-695.07,0.00020063,2]
[350248556,1737735085848,-530.99,0.00020063,2]
[350248557,1737735085858,-4029.1,0.00020063,2]
[350248558,1737735085868,-500.0,0.00020063,2]
[350248559,1737735085880,-1624.84,0.00020063,2]
[350248560,1737735085894,-672.83,0.00020063,2]
[350248561,1737735085904,-500.0,0.00020063,2]
[350248562,1737735085914,-2230.2,0.00020063,2]
[350248563,1737735085926,-500.0,0.00020063,2]
[350248564,1737735085941,-500.0,0.00020063,2]
[350248565,1737735085951,-559.05,0.00020063,2]
[350248566,1737735085961,-1209.66,0.00020063,2]
[350248567,1737735085974,-1414.61,0.00020063,2]
[350248568,1737735085984,-500.0,0.00020063,2]
[350248569,1737735085994,-500.0,0.00020063,2]
[350248570,1737735086006,-3342.18,0.00020063,2]
[350248571,1737735086017,-500.0,0.00020063,2]
[350248572,1737735086027,-2092.8,0.00020063,2]
[350248573,1737735086038,-521.83,0.00020063,2]
[350248574,1737735086048,-1013.22,0.00020063,2]
[350248575,1737735086059,-500.0,0.00020063,2]
[350248576,1737735086070,-500.0,0.00020063,2]
[350248577,1737735086080,-926.77,0.00020063,2]
[350248578,1737735086091,-500.0,0.00020063,2]
[350248579,1737735086101,-926.0,0.00020063,2]
[350248580,1737735086111,-6114.66,0.00020063,2]
[350248581,1737735086121,-500.0,0.00020064,2]
[350248582,1737735086131,-500.0,0.00020064,2]
[350248583,1737735086141,-500.0,0.00020064,2]
[350248584,1737735086151,-500.0,0.00020064,2]
[350248585,1737735086162,-747.3,0.00020064,2]
[350248586,1737735086172,-578.69,0.00020064,2]
[350248587,1737735086183,-550.89,0.00020064,2]
[350248588,1737735086193,-500.0,0.00020064,2]
[350248589,1737735086203,-500.0,0.00020064,2]
[350248590,1737735086213,-500.0,0.00020064,2]
[350248591,1737735086224,-150.0,0.00020075,4]
[350248592,1737735086234,-150.0,0.00020075,4]
[350248593,1737735086245,-5000.0,0.00020079,2]
[350248594,1737735086256,-12500.0,0.0002008,2]
[350248595,1737735086266,-2500.0,0.00020082,2]
[350248596,1737735086277,-500.0,0.00020084,2]
[350248597,1737735086287,-2000.0,0.00020089,2]
[350248598,1737735086297,-873.96406,0.000201,2]
[350248599,1737735086307,-391.32135,0.000201,2]
[350248600,1737735086317,-500.0,0.000201,2]
[350248601,1737735086327,-798.61,0.000201,2]
[350248602,1737735086340,-2156.11,0.000201,2]
[350248603,1737735086350,-500.0,0.000201,2]
[350248604,1737735086361,-927.0,0.000201,2]
[350248605,1737735086371,-500.0,0.000201,2]
[350248606,1737735086380,-544.0,0.000201,2]
[350248607,1737735086391,-500.0,0.000201,2]
[350248608,1737735086401,-517.74,0.000201,2]
[350248609,1737735086411,-1223.83,0.000201,2]
[350248610,1737735086421,-1716.18,0.000201,2]
[350248611,1737735086431,-1769.78,0.000201,2]
[350248612,1737735086441,-617.72,0.000201,2]
[350248613,1737735086451,-3582.9,0.000201,2]
[350248614,1737735086465,-6343.0,0.000201,2]
[350248615,1737735086475,-851.26,0.000201,2]
[350248616,1737735086485,-592.94,0.000201,2]
[350248617,1737735086496,-544.55634982,0.000201,2]
[350248618,1737735086508,-805.09,0.000201,2]
[350248619,1737735086518,-1086.75,0.000201,2]
[350248620,1737735086529,-1200.3,0.000201,2]
[350248621,1737735086540,-548.7,0.000201,2]
[350248622,1737735086550,-1000.0,0.000201,2]
[350248623,1737735086560,-5000.0,0.00020101,2]
[350248624,1737735086570,-150.0,0.00020102,4]
[350248625,1737735086581,-5000.0,0.00020104,2]
[350248626,1737735086592,-2530.79,0.00020106,2]
[350248627,1737735086602,-10000.0,0.00020107,2]
[350248628,1737735086613,-10000.0,0.00020107,2]
[350248629,1737735086624,-10000.0,0.00020107,2]
[350248630,1737735086635,-500.0,0.00020108,2]
[350248631,1737735086645,-2552.13,0.00020116,2]
[350248632,1737735086657,-12500.0,0.0002012,2]
[350248633,1737735086667,-28482.9801509,0.00020123,2]
[350248634,1737735086677,-40336.13530263,0.00020123,2]
[350248635,1737735086692,-25000.0,0.00020124,2]
[350248636,1737735086703,-428.01,0.00020133,2]
[350248637,1737735086713,-2576.5,0.00020141,2]
[350248638,1737735086725,-623.66119626,0.00020141,2]
[350248639,1737735086735,-150.0,0.00020146,4]
[350248640,1737735086745,-2535.8,0.00020146,2]
[350248641,1737735086756,-5000.0,0.00020147,2]
[350248642,1737735086767,-1000.0,0.00020148,15]
[350248643,1737735086777,-150.0,0.00020152,4]
[350248644,1737735086788,-1802.89,0.00020155,2]
[350248645,1737735086799,-12500.0,0.0002016,2]
[350248646,1737735086809,-152.0,0.00020166,6]
[350248647,1737735086819,-150.0,0.00020175,2]
[350248648,1737735086831,-25000.0,0.00020178,2]
[350248649,1737735086841,-150.0,0.00020189,4]
[350248650,1737735086851,-509.51,0.00020199,2]
[350248651,1737735086862,-577.72,0.00020199,2]
[350248652,1737735086872,-580.64,0.00020199,2]
[350248653,1737735086888,-679.78,0.00020199,2]
[350248654,1737735086898,-1705.53,0.00020199,2]
[350248655,1737735086909,-2554.5,0.00020199,2]
[350248656,1737735086919,-676.513947,0.00020199,2]
[350248657,1737735086930,-500.0,0.00020199,2]
[350248658,1737735086941,-956.9,0.00020199,2]
[350248659,1737735086951,-1945.88,0.00020199,2]
[350248660,1737735086963,-2012.13,0.00020199,2]
[350248661,1737735086974,-622.12,0.00020199,2]
[350248662,1737735086985,-846.729176,0.00020199,2]
[350248663,1737735086995,-1583.64,0.00020199,2]
[350248664,1737735087006,-564.16,0.00020199,2]
[350248665,1737735087017,-1121.35,0.00020199,2]
[350248666,1737735087027,-871.63,0.00020199,2]
[350248667,1737735087037,-1370.61,0.00020199,2]
[350248668,1737735087047,-705.29,0.00020199,2]
[350248669,1737735087058,-1962.44,0.00020199,2]
[350248670,1737735087068,-718.17,0.00020199,2]
[350248671,1737735087079,-619.05,0.00020199,2]
[350248672,1737735087090,-865.04,0.00020199,2]
[350248673,1737735087100,-2217.77,0.00020199,2]
[350248674,1737735087111,-722.1,0.00020199,2]
[350248675,1737735087121,-562.1,0.00020199,2]
[350248676,1737735087131,-2901.51,0.00020199,2]
[350248677,1737735087141,-503.38,0.00020199,2]
[350248678,1737735087151,-1511.51,0.00020199,2]
[350248679,1737735087162,-500.0,0.00020199,2]
[350248680,1737735087186,-1656.27,0.00020199,2]
[350248681,1737735087196,-831.3,0.00020199,2]
[350248682,1737735087206,-1027.33,0.00020199,2]
[350248683,1737735087217,-1185.98,0.00020199,2]
[350248684,1737735087227,-985.79,0.00020199,2]
[350248685,1737735087237,-2108.39,0.00020199,2]
[350248686,1737735087248,-1080.47,0.00020199,2]
[350248687,1737735087262,-838.77,0.00020199,2]
[350248688,1737735087275,-538.96,0.00020199,2]
[350248689,1737735087284,-500.0,0.00020199,2]
[350248690,1737735087294,-578.58,0.00020199,2]
[350248691,1737735087304,-2039.23,0.00020199,2]
[350248692,1737735087314,-1068.15,0.00020199,2]
[350248693,1737735087324,-1155.96,0.00020199,2]
[350248694,1737735087334,-2273.11,0.00020199,2]
[350248695,1737735087344,-1338.57,0.00020199,2]
[350248696,1737735087354,-3483.22,0.00020199,2]
[350248697,1737735087364,-500.0,0.00020199,2]
[350248698,1737735087374,-872.95,0.00020199,2]
[350248699,1737735087384,-1147.06,0.00020199,2]
[350248700,1737735087394,-500.0,0.00020199,2]
[350248701,1737735087404,-1277.07,0.00020199,2]
[350248702,1737735087414,-2989.39,0.00020199,2]
[350248703,1737735087424,-644.25,0.00020199,2]
[350248704,1737735087433,-871.11,0.00020199,2]
[350248705,1737735087443,-500.0,0.000202,2]
[350248706,1737735087453,-500.0,0.000202,2]
[350248707,1737735087463,-196.37577558,0.000202,2]
[350248708,1737735087473,-500.0,0.000202,2]
[350248709,1737735087482,-500.0,0.000202,2]
[350248710,1737735087494,-677.93,0.000202,2]
[350248711,1737735087506,-500.0,0.000202,2]
[350248712,1737735087517,-660.08,0.000202,2]
[350248713,1737735087531,-589.35,0.000202,2]
[350248714,1737735087543,-500.0,0.000202,2]
[350248715,1737735087555,-500.0,0.000202,2]
[350248716,1737735087566,-770.43,0.000202,2]
[350248717,1737735087576,-500.0,0.000202,2]
[350248718,1737735087586,-500.0,0.000202,2]
[350248719,1737735087595,-338.84008004,0.000202,2]
[350248720,1737735087605,-513.79,0.000202,2]
[350248721,1737735087615,-500.0,0.000202,2]
[350248722,1737735087624,-580.89,0.000202,2]
[350248723,1737735087634,-614.29,0.000202,2]
[350248724,1737735087643,-500.0,0.000202,2]
[350248725,1737735087653,-500.0,0.000202,2]
[350248726,1737735087662,-500.0,0.000202,2]
[350248727,1737735087672,-566.81,0.000202,2]
[350248728,1737735087683,-767.86,0.000202,2]
[350248729,1737735087693,-654.02,0.000202,2]
[350248730,1737735087704,-500.0,0.000202,2]
[350248731,1737735087714,-500.0,0.000202,2]
[350248732,1737735087724,-500.0,0.000202,2]
[350248733,1737735087735,-500.0,0.000202,2]
[350248734,1737735087744,-500.0,0.000202,2]
[350248735,1737735087756,-500.0,0.000202,2]
[350248736,1737735087766,-500.0,0.000202,2]
[350248737,1737735087777,-500.0,0.000202,2]
[350248738,1737735087787,-509.94,0.000202,2]
[350248739,1737735087798,-500.0,0.000202,2]
[350248740,1737735087808,-798.82,0.000202,2]
[350248741,1737735087818,-652.05,0.000202,2]
[350248742,1737735087828,-846.33,0.000202,2]
[350248743,1737735087847,-770.06,0.000202,2]
[350248744,1737735087862,-937.47,0.000202,2]
[350248745,1737735087874,-672.05,0.000202,2]
[350248746,1737735087885,-500.0,0.000202,2]
[350248747,1737735087895,-692.99,0.000202,2]
[350248748,1737735087906,-273.74747251,0.000202,2]
[350248749,1737735087916,-500.0,0.000202,2]
[350248750,1737735087927,-500.0,0.000202,2]
[350248751,1737735087938,-500.0,0.000202,2]
[350248752,1737735087948,-1011.61,0.000202,2]
[350248753,1737735087959,-500.0,0.000202,2]
[350248754,1737735087973,-408.70068641,0.000202,2]
[350248755,1737735087984,-954.97,0.000202,2]
[350248756,1737735087995,-594.05,0.000202,2]
[350248757,1737735088008,-614.05,0.000202,2]
[350248758,1737735088019,-652.47,0.000202,2]
[350248759,1737735088030,-849.3,0.000202,2]
[350248760,1737735088041,-708.17,0.000202,2]
[350248761,1737735088052,-511.38,0.000202,2]
[350248762,1737735088063,-833.01,0.000202,2]
[350248763,1737735088074,-681.69,0.000202,2]
[350248764,1737735088085,-560.31,0.000202,2]
[350248765,1737735088095,-500.0,0.000202,2]
[350248766,1737735088106,-805.26,0.000202,2]
[350248767,1737735088116,-697.85,0.000202,2]
[350248768,1737735088127,-500.0,0.000202,2]
[350248769,1737735088138,-500.0,0.000202,2]
[350248770,1737735088149,-580.02,0.000202,2]
[350248771,1737735088160,-500.0,0.000202,2]
[350248772,1737735088171,-669.97,0.000202,2]
[350248773,1737735088183,-500.0,0.000202,7]
[350248774,1737735088194,-162.84336777,0.000202,2]
[350248775,1737735088205,-164.83801343,0.000202,2]
[350248776,1737735088216,-556.37,0.000202,2]
[350248777,1737735088227,-500.0,0.000202,2]
[350248778,1737735088237,-500.0,0.000202,2]
[350248779,1737735088249,-1151.25,0.000202,2]
[350248780,1737735088261,-582.4,0.000202,2]
[350248781,1737735088272,-500.0,0.000202,2]
[350248782,1737735088283,-1417.9,0.000202,2]
[350248783,1737735088293,-656.44,0.000202,2]
[350248784,1737735088304,-582.99,0.000202,2]
[350248785,1737735088314,-544.3,0.000202,2]
[350248786,1737735088326,-500.0,0.000202,2]
[350248787,1737735088336,-1083.19,0.000202,2]
[350248788,1737735088347,-634.65,0.000202,2]
[350248789,1737735088358,-1858.23,0.000202,2]
[350248790,1737735088369,-516.81,0.000202,2]
[350248791,1737735088379,-1003.94,0.000202,2]
[350248792,1737735088389,-500.0,0.000202,2]
[350248793,1737735088400,-695.07,0.000202,2]
[350248794,1737735088410,-530.99,0.000202,2]
[350248795,1737735088421,-4029.1,0.000202,2]
[350248796,1737735088432,-500.0,0.000202,2]
[350248797,1737735088442,-1624.84,0.000202,2]
[350248798,1737735088453,-672.83,0.000202,2]
[350248799,1737735088463,-500.0,0.000202,2]
[350248800,1737735088474,-2230.2,0.000202,2]
[350248801,1737735088484,-500.0,0.000202,2]
[350248802,1737735088494,-500.0,0.000202,2]
[350248803,1737735088504,-559.05,0.000202,2]
[350248804,1737735088516,-1209.66,0.000202,2]
[350248805,1737735088527,-1414.61,0.000202,2]
[350248806,1737735088537,-500.0,0.000202,2]
[350248807,1737735088548,-500.0,0.000202,2]
[350248808,1737735088558,-3342.18,0.000202,2]
[350248809,1737735088567,-500.0,0.000202,2]
[350248810,1737735088577,-2092.8,0.000202,2]
[350248811,1737735088587,-521.83,0.000202,2]
[350248812,1737735088598,-1013.22,0.000202,2]
[350248813,1737735088608,-500.0,0.000202,2]
[350248814,1737735088619,-500.0,0.000202,2]
[350248815,1737735088629,-926.77,0.000202,2]
[350248816,1737735088641,-500.0,0.000202,2]
[350248817,1737735088651,-926.0,0.000202,2]
[350248818,1737735088661,-6114.66,0.000202,2]
[350248819,1737735088672,-500.0,0.00020201,2]
[350248820,1737735088681,-500.0,0.00020201,2]
[350248821,1737735088691,-500.0,0.00020201,2]
[350248822,1737735088701,-500.0,0.00020201,2]
[350248823,1737735088711,-747.3,0.00020201,2]
[350248824,1737735088721,-578.69,0.00020201,2]
[350248825,1737735088732,-550.89,0.00020201,2]
[350248826,1737735088742,-500.0,0.00020201,2]
[350248827,1737735088752,-500.0,0.00020201,2]
[350248828,1737735088763,-10000.0,0.00020213,2]
[350248829,1737735088773,-6253.75,0.00020213,2]
[350248830,1737735088783,-5000.0,0.00020218,2]
[350248831,1737735088794,-500.0,0.00020221,2]
[350248832,1737735088803,-397.47,0.00020224,2]
[350248833,1737735088814,-150.0,0.00020229,4]
[350248834,1737735088823,-150.0,0.00020229,4]
[350248835,1737735088833,-150.0,0.00020232,4]
[350248836,1737735088844,-21080.07698603,0.00020237,2]
[350248837,1737735088855,-500.0,0.00020237,2]
[350248838,1737735088866,-798.61,0.00020237,2]
[350248839,1737735088879,-2156.11,0.00020237,2]
[350248840,1737735088891,-927.0,0.00020237,2]
[350248841,1737735088902,-500.0,0.00020237,2]
[350248842,1737735088912,-544.0,0.00020237,2]
[350248843,1737735088923,-500.0,0.00020237,2]
[350248844,1737735088934,-517.74,0.00020237,2]
[350248845,1737735088944,-1223.83,0.00020237,2]
[350248846,1737735088955,-1716.18,0.00020237,2]
[350248847,1737735088965,-1769.78,0.00020237,2]
[350248848,1737735088975,-617.72,0.00020237,2]
[350248849,1737735088986,-3582.9,0.00020237,2]
[350248850,1737735088996,-6343.0,0.00020237,2]
[350248851,1737735089007,-851.26,0.00020237,2]
[350248852,1737735089018,-592.94,0.00020237,2]
[350248853,1737735089027,-805.09,0.00020237,2]
[350248854,1737735089037,-1086.75,0.00020237,2]
[350248855,1737735089049,-1200.3,0.00020237,2]
[350248856,1737735089059,-1070.12006344,0.00020237,2]
[350248857,1737735089069,-623.66119626,0.00020245,2]
[350248858,1737735089079,-500.0,0.00020245,2]
[350248859,1737735089089,-150.0,0.00020251,4]
[350248860,1737735089099,-500.0,0.0002026,2]
[350248861,1737735089109,-1000.0,0.0002026,2]
[350248862,1737735089120,-943.53,0.00020268,2]
[350248863,1737735089130,-150.0,0.00020275,4]